[Event "Gibraltar Masters 18th"]
[Site "Gibraltar"]
[Date "2020.01.28"]
[Round "8.7"]
[White "Navara, David"]
[Black "Karthikeyan, Murali"]
[Result "1/2-1/2"]
[ECO "E06"]
[WhiteElo "2717"]
[BlackElo "2606"]
[PlyCount "62"]
[EventDate "2020.01.21"]
[EventType "swiss"]
[EventRounds "10"]
[EventCountry "GGB"]
[SourceTitle "BritBase"]
[Source "John Saunders"]
[SourceDate "2021.06.05"]
[SourceVersion "1"]
[SourceVersionDate "2021.06.05"]
[SourceQuality "1"]
[TimeControl "40/100:0"]
[WhiteClock "1:12:05"]
[BlackClock "0:17:51"]

1. Nf3 {[%emt 0:00:00]} Nf6 {[%emt 0:00:00]} 2. c4 {[%emt 0:00:00]} e6 {
[%emt 0:00:00]} 3. g3 {[%emt 0:00:00]} d5 {[%emt 0:00:00]} 4. Bg2 {[%emt 0:00:
00]} Be7 {[%emt 0:00:00]} 5. d4 {[%emt 0:00:00]} O-O {[%emt 0:00:00]} 6. Nc3 {
[%emt 0:00:00]} dxc4 {[%emt 0:00:00]} 7. Ne5 {[%emt 0:00:00]} Nc6 {[%emt 0:00:
00]} 8. Bxc6 {[%emt 0:00:00]} bxc6 {[%emt 0:00:00]} 9. Nxc6 {[%emt 0:00:00]}
Qe8 {[%emt 0:00:00]} 10. Nxe7+ {[%emt 0:00:00]} Qxe7 {[%emt 0:00:00]} 11. Qa4 {
[%emt 0:00:00]} c5 {[%emt 0:00:00]} 12. dxc5 {[%emt 0:00:00]} Qxc5 {[%emt 0:00:
00]} 13. Be3 {[%emt 0:00:00]} Qc7 {[%emt 0:00:00]} 14. O-O-O {[%emt 0:00:00]}
Bb7 {[%emt 0:00:00]} 15. f3 {[%emt 0:00:00]} Nd5 {[%emt 0:00:00]} 16. Bd4 {
[%emt 0:00:00]} Rfd8 {[%emt 0:00:00]} 17. Kb1 {[%emt 0:00:00]} Nxc3+ {[%emt 0:
00:00]} 18. Bxc3 {[%emt 0:00:00]} Qc5 {[%emt 0:00:00]} 19. Rxd8+ {[%emt 0:00:
00]} Rxd8 {[%emt 0:00:00]} 20. Rd1 {[%emt 0:00:00]} Rxd1+ {[%emt 0:00:00]} 21.
Qxd1 {[%emt 0:00:00]} Qd5 {[%emt 0:00:00]} 22. Qxd5 {[%emt 0:00:00]} Bxd5 {
[%emt 0:00:00]} 23. Kc2 {[%emt 0:00:00]} f6 {[%emt 0:00:00]} 24. Bd4 {[%emt 0:
00:00]} a6 {[%emt 0:00:00]} 25. Kc3 {[%emt 0:00:00]} Bc6 {[%emt 0:00:00]} 26.
Kb4 {[%emt 0:00:00]} Kf7 {[%emt 0:00:00]} 27. e4 {[%emt 0:00:00]} e5 {[%emt 0:
00:00]} 28. Be3 {[%emt 0:00:00]} Bb5 {[%emt 0:00:00]} 29. f4 {[%emt 0:00:00]}
Ke6 {[%emt 0:00:00]} 30. Kc5 {[%emt 0:00:00]} g6 {[%emt 0:00:00]} 31. h4 {
[%emt 0:00:00]} f5 {[%emt 0:00:00]} 1/2-1/2

[Event "Gibraltar Masters 18th"]
[Site "Gibraltar"]
[Date "2020.01.28"]
[Round "8.8"]
[White "Alekseenko, Kirill"]
[Black "Pichot, Alan"]
[Result "1/2-1/2"]
[ECO "C54"]
[WhiteElo "2704"]
[BlackElo "2606"]
[PlyCount "85"]
[EventDate "2020.01.21"]
[EventType "swiss"]
[EventRounds "10"]
[EventCountry "GGB"]
[SourceTitle "BritBase"]
[Source "John Saunders"]
[SourceDate "2021.06.05"]
[SourceVersion "1"]
[SourceVersionDate "2021.06.05"]
[SourceQuality "1"]
[TimeControl "40/100:0"]
[WhiteClock "0:31:43"]
[BlackClock "0:51:20"]

1. e4 {[%emt 0:00:00]} e5 {[%emt 0:00:00]} 2. Nf3 {[%emt 0:00:00]} Nc6 {
[%emt 0:00:00]} 3. Bc4 {[%emt 0:00:00]} Bc5 {[%emt 0:00:00]} 4. O-O {[%emt 0:
00:00]} Nf6 {[%emt 0:00:00]} 5. d3 {[%emt 0:00:00]} d6 {[%emt 0:00:00]} 6. c3 {
[%emt 0:00:00]} a5 {[%emt 0:00:00]} 7. Bb3 {[%emt 0:00:00]} O-O {[%emt 0:00:00]
} 8. Nbd2 {[%emt 0:00:00]} h6 {[%emt 0:00:00]} 9. h3 {[%emt 0:00:00]} Be6 {
[%emt 0:00:00]} 10. Bc2 {[%emt 0:00:00]} Ba7 {[%emt 0:00:00]} 11. Re1 {[%emt 0:
00:00]} Re8 {[%emt 0:00:00]} 12. Nf1 {[%emt 0:00:00]} d5 {[%emt 0:00:00]} 13.
Ng3 {[%emt 0:00:00]} dxe4 {[%emt 0:00:00]} 14. dxe4 {[%emt 0:00:00]} Qxd1 {
[%emt 0:00:00]} 15. Bxd1 {[%emt 0:00:00]} Rab8 {[%emt 0:00:00]} 16. a4 {
[%emt 0:00:00]} Bc4 {[%emt 0:00:00]} 17. Nd2 {[%emt 0:00:00]} Ba6 {[%emt 0:00:
00]} 18. Be2 {[%emt 0:00:00]} Bxe2 {[%emt 0:00:00]} 19. Rxe2 {[%emt 0:00:00]}
Red8 {[%emt 0:00:00]} 20. Kf1 {[%emt 0:00:00]} Ne8 {[%emt 0:00:00]} 21. Nf5 {
[%emt 0:00:00]} h5 {[%emt 0:00:00]} 22. Nc4 {[%emt 0:00:00]} g6 {[%emt 0:00:00]
} 23. Nfe3 {[%emt 0:00:00]} Nd6 {[%emt 0:00:00]} 24. Nxd6 {[%emt 0:00:00]} Bxe3
{[%emt 0:00:00]} 25. Bxe3 {[%emt 0:00:00]} Rxd6 {[%emt 0:00:00]} 26. Ree1 {
[%emt 0:00:00]} Rbd8 {[%emt 0:00:00]} 27. f3 {[%emt 0:00:00]} f6 {[%emt 0:00:
00]} 28. h4 {[%emt 0:00:00]} Kf7 {[%emt 0:00:00]} 29. g3 {[%emt 0:00:00]} Ke6 {
[%emt 0:00:00]} 30. Ke2 {[%emt 0:00:00]} R6d7 {[%emt 0:00:00]} 31. Rg1 {
[%emt 0:00:00]} Rb8 {[%emt 0:00:00]} 32. Rad1 {[%emt 0:00:00]} Rbd8 {[%emt 0:
00:00]} 33. Rd2 {[%emt 0:00:00]} Ne7 {[%emt 0:00:00]} 34. Rxd7 {[%emt 0:00:00]}
Rxd7 {[%emt 0:00:00]} 35. g4 {[%emt 0:00:00]} hxg4 {[%emt 0:00:00]} 36. fxg4 {
[%emt 0:00:00]} Nc8 {[%emt 0:00:00]} 37. h5 {[%emt 0:00:00]} Nd6 {[%emt 0:00:
00]} 38. Kf3 {[%emt 0:00:00]} Rh7 {[%emt 0:00:00]} 39. hxg6 {[%emt 0:00:00]}
Rg7 {[%emt 0:00:00]} 40. Rh1 {[%emt 0:00:00]} Rxg6 {[%emt 0:00:00]} 41. Rh8 {
[%emt 0:02:12]} Rg7 {[%emt 0:00:28]} 42. b3 {[%emt 0:00:00]} Nf7 {[%emt 0:00:
00]} 43. Rh1 {[%emt 0:00:00]} 1/2-1/2

[Event "Gibraltar Masters 18th"]
[Site "Gibraltar"]
[Date "2020.01.28"]
[Round "8.9"]
[White "Maze, Sebastien"]
[Black "Adams, Michael"]
[Result "1/2-1/2"]
[ECO "C77"]
[WhiteElo "2550"]
[BlackElo "2694"]
[PlyCount "78"]
[EventDate "2020.01.21"]
[EventType "swiss"]
[EventRounds "10"]
[EventCountry "GGB"]
[SourceTitle "BritBase"]
[Source "John Saunders"]
[SourceDate "2021.06.05"]
[SourceVersion "1"]
[SourceVersionDate "2021.06.05"]
[SourceQuality "1"]
[TimeControl "40/100:0"]
[WhiteClock "0:22:04"]
[BlackClock "0:02:58"]

1. e4 {[%emt 0:00:00]} e5 {[%emt 0:00:00]} 2. Nf3 {[%emt 0:00:00]} Nc6 {
[%emt 0:00:00]} 3. Bb5 {[%emt 0:00:00]} a6 {[%emt 0:00:00]} 4. Ba4 {[%emt 0:00:
00]} Nf6 {[%emt 0:00:00]} 5. Nc3 {[%emt 0:00:00]} Bc5 {[%emt 0:00:00]} 6. Bxc6
{[%emt 0:00:00]} dxc6 {[%emt 0:00:00]} 7. Nxe5 {[%emt 0:00:00]} Bxf2+ {[%emt 0:
00:00]} 8. Kxf2 {[%emt 0:00:00]} Qd4+ {[%emt 0:00:00]} 9. Kf1 {[%emt 0:00:00]}
Qxe5 {[%emt 0:00:00]} 10. d3 {[%emt 0:00:00]} Be6 {[%emt 0:00:00]} 11. Qf3 {
[%emt 0:00:00]} O-O-O {[%emt 0:00:00]} 12. Bf4 {[%emt 0:00:00]} Qa5 {[%emt 0:
00:00]} 13. h3 {[%emt 0:00:00]} Rhg8 {[%emt 0:00:00]} 14. Bh2 {[%emt 0:00:00]}
c5 {[%emt 0:00:00]} 15. Kf2 {[%emt 0:00:00]} Qb6 {[%emt 0:00:00]} 16. Na4 {
[%emt 0:00:00]} Qb4 {[%emt 0:00:00]} 17. b3 {[%emt 0:00:00]} Bd7 {[%emt 0:00:
00]} 18. Rhb1 {[%emt 0:00:00]} Bxa4 {[%emt 0:00:00]} 19. bxa4 {[%emt 0:00:00]}
Qxa4 {[%emt 0:00:00]} 20. Qf5+ {[%emt 0:00:00]} Nd7 {[%emt 0:00:00]} 21. Kg1 {
[%emt 0:00:00]} f6 {[%emt 0:00:00]} 22. Kh1 {[%emt 0:00:00]} g6 {[%emt 0:00:00]
} 23. Qd5 {[%emt 0:00:00]} Qc6 {[%emt 0:00:00]} 24. Qxc6 {[%emt 0:00:00]} bxc6
{[%emt 0:00:00]} 25. c4 {[%emt 0:00:00]} Rge8 {[%emt 0:00:00]} 26. Rb3 {
[%emt 0:00:00]} Ne5 {[%emt 0:00:00]} 27. Bxe5 {[%emt 0:00:00]} Rxe5 {[%emt 0:
00:00]} 28. Rf1 {[%emt 0:00:00]} f5 {[%emt 0:00:00]} 29. exf5 {[%emt 0:00:00]}
gxf5 {[%emt 0:00:00]} 30. Ra3 {[%emt 0:00:00]} Re2 {[%emt 0:00:00]} 31. Kg1 {
[%emt 0:00:00]} Rg8 {[%emt 0:00:00]} 32. Rf2 {[%emt 0:00:00]} Re1+ {[%emt 0:00:
00]} 33. Kh2 {[%emt 0:00:00]} Kb7 {[%emt 0:00:00]} 34. Rb2+ {[%emt 0:00:00]}
Ka7 {[%emt 0:00:00]} 35. Rab3 {[%emt 0:00:00]} Re7 {[%emt 0:00:00]} 36. Rf2 {
[%emt 0:00:00]} Re3 {[%emt 0:00:00]} 37. Rfb2 {[%emt 0:00:00]} Re7 {[%emt 0:00:
00]} 38. Rf2 {[%emt 0:00:00]} Re3 {[%emt 0:00:00]} 39. Rfb2 {[%emt 0:00:00]}
Re1 {[%emt 0:00:17]} 1/2-1/2

[Event "Gibraltar Masters 18th"]
[Site "Gibraltar"]
[Date "2020.01.28"]
[Round "8.10"]
[White "Studer, Noel"]
[Black "Cheparinov, Ivan"]
[Result "0-1"]
[ECO "E71"]
[WhiteElo "2546"]
[BlackElo "2686"]
[PlyCount "78"]
[EventDate "2020.01.21"]
[EventType "swiss"]
[EventRounds "10"]
[EventCountry "GGB"]
[SourceTitle "BritBase"]
[Source "John Saunders"]
[SourceDate "2021.06.05"]
[SourceVersion "1"]
[SourceVersionDate "2021.06.05"]
[SourceQuality "1"]
[TimeControl "40/100:0"]
[WhiteClock "0:01:53"]
[BlackClock "0:22:56"]

1. d4 {[%emt 0:00:00]} Nf6 {[%emt 0:00:00]} 2. c4 {[%emt 0:00:00]} g6 {[%emt 0:
00:00]} 3. Nc3 {[%emt 0:00:00]} Bg7 {[%emt 0:00:00]} 4. e4 {[%emt 0:00:00]} d6
{[%emt 0:00:00]} 5. h3 {[%emt 0:00:00]} O-O {[%emt 0:00:00]} 6. Be3 {[%emt 0:
00:00]} Nc6 {[%emt 0:00:00]} 7. d5 {[%emt 0:00:00]} Ne5 {[%emt 0:00:00]} 8. f4
{[%emt 0:00:00]} Ned7 {[%emt 0:00:00]} 9. Bd3 {[%emt 0:00:00]} e5 {[%emt 0:00:
00]} 10. dxe6 {[%emt 0:00:00]} fxe6 {[%emt 0:00:00]} 11. Nge2 {[%emt 0:00:00]}
b6 {[%emt 0:00:00]} 12. O-O {[%emt 0:00:00]} Qe7 {[%emt 0:00:00]} 13. Qd2 {
[%emt 0:00:00]} Bb7 {[%emt 0:00:00]} 14. Bc2 {[%emt 0:00:00]} Nc5 {[%emt 0:00:
00]} 15. Ng3 {[%emt 0:00:00]} a5 {[%emt 0:00:00]} 16. Rae1 {[%emt 0:00:00]}
Nfd7 {[%emt 0:00:00]} 17. b3 {[%emt 0:00:00]} Qh4 {[%emt 0:00:00]} 18. Nge2 {
[%emt 0:00:00]} Nf6 {[%emt 0:00:00]} 19. Bf2 {[%emt 0:00:00]} Qh6 {[%emt 0:00:
00]} 20. Be3 {[%emt 0:00:00]} Ncxe4 {[%emt 0:00:00]} 21. Nxe4 {[%emt 0:00:00]}
Nxe4 {[%emt 0:00:00]} 22. Bxe4 {[%emt 0:00:00]} Bxe4 {[%emt 0:00:00]} 23. f5 {
[%emt 0:00:00]} Qh5 {[%emt 0:00:00]} 24. Ng3 {[%emt 0:00:00]} Qh4 {[%emt 0:00:
00]} 25. Nxe4 {[%emt 0:00:00]} Qxe4 {[%emt 0:00:00]} 26. Rf4 {[%emt 0:00:00]}
Qc6 {[%emt 0:00:00]} 27. fxe6 {[%emt 0:00:00]} Rxf4 {[%emt 0:00:00]} 28. Bxf4 {
[%emt 0:00:00]} Qc5+ {[%emt 0:00:00]} 29. Be3 {[%emt 0:00:00]} Qf5 {[%emt 0:00:
00]} 30. Qd5 {[%emt 0:00:00]} Re8 {[%emt 0:00:00]} 31. Qc6 {[%emt 0:00:00]}
Rxe6 {[%emt 0:00:00]} 32. Qxc7 {[%emt 0:00:00]} Bd4 {[%emt 0:00:00]} 33. Qc8+ {
[%emt 0:00:00]} Kf7 {[%emt 0:00:00]} 34. Qd7+ {[%emt 0:00:00]} Re7 {[%emt 0:00:
00]} 35. Qxe7+ {[%emt 0:00:00]} Kxe7 {[%emt 0:00:00]} 36. Bxd4+ {[%emt 0:00:00]
} Kd7 {[%emt 0:00:00]} 37. Bxb6 {[%emt 0:00:00]} Qc2 {[%emt 0:00:00]} 38. Ra1 {
[%emt 0:00:00]} a4 {[%emt 0:00:00]} 39. bxa4 {[%emt 0:00:00]} Qb2 {[%emt 0:00:
00]} 0-1

[Event "Gibraltar Masters 18th"]
[Site "Gibraltar"]
[Date "2020.01.28"]
[Round "8.11"]
[White "Ibarra Jerez, Jose Carlos"]
[Black "Jones, Gawain C B"]
[Result "1/2-1/2"]
[ECO "B23"]
[WhiteElo "2548"]
[BlackElo "2679"]
[PlyCount "60"]
[EventDate "2020.01.21"]
[EventType "swiss"]
[EventRounds "10"]
[EventCountry "GGB"]
[SourceTitle "BritBase"]
[Source "John Saunders"]
[SourceDate "2021.06.05"]
[SourceVersion "1"]
[SourceVersionDate "2021.06.05"]
[SourceQuality "1"]
[TimeControl "40/100:0"]
[WhiteClock "0:33:35"]
[BlackClock "0:32:02"]

1. e4 {[%emt 0:06:45]} c5 {[%emt 0:00:00]} 2. Nc3 {[%emt 0:00:00]} Nc6 {
[%emt 0:00:00]} 3. Bb5 {[%emt 0:00:00]} Nd4 {[%emt 0:00:00]} 4. Nf3 {[%emt 0:
00:00]} a6 {[%emt 0:00:00]} 5. Bd3 {[%emt 0:00:00]} g6 {[%emt 0:00:00]} 6. Nxd4
{[%emt 0:00:00]} cxd4 {[%emt 0:00:00]} 7. Ne2 {[%emt 0:00:00]} d5 {[%emt 0:00:
00]} 8. e5 {[%emt 0:00:00]} f6 {[%emt 0:00:00]} 9. f4 {[%emt 0:00:00]} fxe5 {
[%emt 0:00:00]} 10. fxe5 {[%emt 0:00:00]} Bg7 {[%emt 0:00:00]} 11. Nxd4 {
[%emt 0:00:00]} Nh6 {[%emt 0:00:00]} 12. Nf3 {[%emt 0:00:00]} Ng4 {[%emt 0:00:
00]} 13. Be2 {[%emt 0:00:00]} Nxe5 {[%emt 0:00:00]} 14. Nxe5 {[%emt 0:00:00]}
Bxe5 {[%emt 0:00:00]} 15. d4 {[%emt 0:00:00]} Bg7 {[%emt 0:00:00]} 16. O-O {
[%emt 0:00:00]} Bf5 {[%emt 0:00:00]} 17. c3 {[%emt 0:00:00]} O-O {[%emt 0:00:
00]} 18. Bf4 {[%emt 0:00:00]} Be4 {[%emt 0:00:00]} 19. Qd2 {[%emt 0:00:00]} Qb6
{[%emt 0:00:00]} 20. Be3 {[%emt 0:00:00]} Qd6 {[%emt 0:00:00]} 21. Bf4 {
[%emt 0:00:00]} e5 {[%emt 0:00:00]} 22. dxe5 {[%emt 0:00:00]} Bxe5 {[%emt 0:00:
00]} 23. Bxe5 {[%emt 0:00:00]} Qxe5 {[%emt 0:00:00]} 24. Rxf8+ {[%emt 0:00:00]}
Rxf8 {[%emt 0:00:00]} 25. Rf1 {[%emt 0:00:00]} Rxf1+ {[%emt 0:00:00]} 26. Bxf1
{[%emt 0:00:00]} Kf7 {[%emt 0:00:00]} 27. Qf2+ {[%emt 0:00:00]} Qf6 {[%emt 0:
00:00]} 28. Qxf6+ {[%emt 0:00:00]} Kxf6 {[%emt 0:00:00]} 29. Kf2 {[%emt 0:00:
00]} Ke5 {[%emt 0:00:00]} 30. Ke3 {[%emt 0:00:00]} a5 {[%emt 0:00:00]} 1/2-1/2

[Event "Gibraltar Masters 18th"]
[Site "Gibraltar"]
[Date "2020.01.28"]
[Round "8.12"]
[White "Werle, Jan"]
[Black "Saric, Ivan"]
[Result "1/2-1/2"]
[ECO "D11"]
[WhiteElo "2545"]
[BlackElo "2655"]
[PlyCount "67"]
[EventDate "2020.01.21"]
[EventType "swiss"]
[EventRounds "10"]
[EventCountry "GGB"]
[SourceTitle "BritBase"]
[Source "John Saunders"]
[SourceDate "2021.06.05"]
[SourceVersion "1"]
[SourceVersionDate "2021.06.05"]
[SourceQuality "1"]
[TimeControl "40/100:0"]
[WhiteClock "0:17:05"]
[BlackClock "0:38:06"]

1. d4 {[%emt 0:00:00]} d5 {[%emt 0:00:00]} 2. c4 {[%emt 0:00:00]} c6 {[%emt 0:
00:00]} 3. Nf3 {[%emt 0:00:00]} Nf6 {[%emt 0:00:00]} 4. e3 {[%emt 0:00:00]} Bg4
{[%emt 0:00:00]} 5. Qb3 {[%emt 0:00:00]} Qb6 {[%emt 0:00:00]} 6. Ne5 {[%emt 0:
00:00]} Bf5 {[%emt 0:00:00]} 7. cxd5 {[%emt 0:00:00]} Qxb3 {[%emt 0:00:00]} 8.
axb3 {[%emt 0:00:00]} Nxd5 {[%emt 0:00:00]} 9. Bd3 {[%emt 0:00:00]} Bxd3 {
[%emt 0:00:00]} 10. Nxd3 {[%emt 0:00:00]} e6 {[%emt 0:00:00]} 11. Bd2 {[%emt 0:
00:00]} Nd7 {[%emt 0:00:00]} 12. Na3 {[%emt 0:00:00]} Nc7 {[%emt 0:00:00]} 13.
Ke2 {[%emt 0:00:00]} Be7 {[%emt 0:00:00]} 14. Rhc1 {[%emt 0:00:00]} O-O {
[%emt 0:00:00]} 15. b4 {[%emt 0:00:00]} a6 {[%emt 0:00:00]} 16. Nc5 {[%emt 0:
00:00]} Nxc5 {[%emt 0:00:00]} 17. bxc5 {[%emt 0:00:00]} f6 {[%emt 0:00:00]} 18.
Nc4 {[%emt 0:00:00]} Nb5 {[%emt 0:00:00]} 19. f3 {[%emt 0:00:00]} Rf7 {[%emt 0:
00:00]} 20. Be1 {[%emt 0:00:00]} e5 {[%emt 0:00:00]} 21. Nb6 {[%emt 0:00:00]}
Re8 {[%emt 0:00:00]} 22. d5 {[%emt 0:00:00]} cxd5 {[%emt 0:00:00]} 23. Nxd5 {
[%emt 0:00:00]} Na7 {[%emt 0:00:00]} 24. e4 {[%emt 0:00:00]} Nc6 {[%emt 0:00:
00]} 25. Bf2 {[%emt 0:00:00]} f5 {[%emt 0:00:00]} 26. exf5 {[%emt 0:00:00]}
Rxf5 {[%emt 0:00:00]} 27. Rc4 {[%emt 0:00:00]} Bf8 {[%emt 0:00:00]} 28. Rd1 {
[%emt 0:00:00]} Rd8 {[%emt 0:00:00]} 29. Nc3 {[%emt 0:00:00]} Rxd1 {[%emt 0:00:
00]} 30. Kxd1 {[%emt 0:00:00]} Rf7 {[%emt 0:00:00]} 31. Ke2 {[%emt 0:00:00]}
Rd7 {[%emt 0:00:00]} 32. Ne4 {[%emt 0:00:00]} Be7 {[%emt 0:00:00]} 33. g4 {
[%emt 0:00:00]} Kf7 {[%emt 0:00:00]} 34. h4 {[%emt 0:00:00]} 1/2-1/2

[Event "Gibraltar Masters 18th"]
[Site "Gibraltar"]
[Date "2020.01.28"]
[Round "8.13"]
[White "Gukesh, Dommaraju"]
[Black "Adhiban, Baskaran"]
[Result "1/2-1/2"]
[ECO "D32"]
[WhiteElo "2542"]
[BlackElo "2654"]
[PlyCount "130"]
[EventDate "2020.01.21"]
[EventType "swiss"]
[EventRounds "10"]
[EventCountry "GGB"]
[SourceTitle "BritBase"]
[Source "John Saunders"]
[SourceDate "2021.06.05"]
[SourceVersion "1"]
[SourceVersionDate "2021.06.05"]
[SourceQuality "1"]
[TimeControl "40/100:0"]
[WhiteClock "0:02:07"]
[BlackClock "0:41:30"]

1. d4 {[%emt 0:00:00]} d5 {[%emt 0:00:00]} 2. c4 {[%emt 0:00:00]} e6 {[%emt 0:
00:00]} 3. Nc3 {[%emt 0:00:00]} c5 {[%emt 0:00:00]} 4. cxd5 {[%emt 0:00:00]}
cxd4 {[%emt 0:00:00]} 5. Qa4+ {[%emt 0:00:00]} Bd7 {[%emt 0:00:00]} 6. Qxd4 {
[%emt 0:00:00]} exd5 {[%emt 0:00:00]} 7. Qe5+ {[%emt 0:00:00]} Be6 {[%emt 0:00:
00]} 8. e4 {[%emt 0:00:00]} Nc6 {[%emt 0:00:00]} 9. Bb5 {[%emt 0:00:00]} dxe4 {
[%emt 0:00:00]} 10. Bg5 {[%emt 0:00:00]} Qd7 {[%emt 0:00:00]} 11. Qxe4 {
[%emt 0:00:00]} Be7 {[%emt 0:00:00]} 12. Rd1 {[%emt 0:00:00]} Qc8 {[%emt 0:00:
00]} 13. Nf3 {[%emt 0:00:00]} Nf6 {[%emt 0:00:00]} 14. Bxf6 {[%emt 0:00:00]}
Bxf6 {[%emt 0:00:00]} 15. Nd5 {[%emt 0:00:00]} Bd8 {[%emt 0:00:00]} 16. Nf4 {
[%emt 0:00:00]} O-O {[%emt 0:00:00]} 17. Nxe6 {[%emt 0:00:00]} Qxe6 {[%emt 0:
00:00]} 18. Qxe6 {[%emt 0:00:00]} fxe6 {[%emt 0:00:00]} 19. Bxc6 {[%emt 0:00:
00]} bxc6 {[%emt 0:00:00]} 20. Ne5 {[%emt 0:00:00]} Bf6 {[%emt 0:00:00]} 21.
Nd7 {[%emt 0:00:00]} Rfc8 {[%emt 0:00:00]} 22. Nxf6+ {[%emt 0:00:00]} gxf6 {
[%emt 0:00:00]} 23. Rd6 {[%emt 0:00:00]} Kf7 {[%emt 0:00:00]} 24. Rd7+ {
[%emt 0:00:00]} Kg6 {[%emt 0:00:00]} 25. Kd2 {[%emt 0:00:00]} Rd8 {[%emt 0:00:
00]} 26. Rxd8 {[%emt 0:00:00]} Rxd8+ {[%emt 0:00:00]} 27. Kc2 {[%emt 0:00:14]}
Kf5 {[%emt 0:00:00]} 28. Re1 {[%emt 0:00:37]} Rd4 {[%emt 0:00:00]} 29. Re3 {
[%emt 0:00:05]} Rf4 {[%emt 0:00:00]} 30. f3 {[%emt 0:00:00]} Rh4 {[%emt 0:00:
00]} 31. h3 {[%emt 0:00:11]} e5 {[%emt 0:00:00]} 32. Rc3 {[%emt 0:00:00]} Kf4 {
[%emt 0:00:00]} 33. Rxc6 {[%emt 0:00:00]} f5 {[%emt 0:00:00]} 34. Rf6 {[%emt 0:
00:00]} Kg5 {[%emt 0:00:00]} 35. Rf7 {[%emt 0:00:00]} a5 {[%emt 0:00:00]} 36.
Rg7+ {[%emt 0:00:00]} Kf6 {[%emt 0:00:00]} 37. Ra7 {[%emt 0:00:00]} a4 {
[%emt 0:00:00]} 38. Ra6+ {[%emt 0:00:00]} Kg5 {[%emt 0:00:00]} 39. Ra5 {
[%emt 0:00:00]} Rc4+ {[%emt 0:00:00]} 40. Kd3 {[%emt 0:00:00]} Rd4+ {[%emt 0:
00:00]} 41. Kc3 {[%emt 0:00:00]} Kf4 {[%emt 0:00:00]} 42. Ra7 {[%emt 0:00:00]}
Kg3 {[%emt 0:00:00]} 43. Rg7+ {[%emt 0:00:00]} Kf2 {[%emt 0:00:00]} 44. b4 {
[%emt 0:00:00]} axb3 {[%emt 0:00:00]} 45. axb3 {[%emt 0:00:00]} Rf4 {[%emt 0:
00:00]} 46. Kd2 {[%emt 0:00:00]} h5 {[%emt 0:00:00]} 47. Rg8 {[%emt 0:00:00]}
h4 {[%emt 0:00:00]} 48. Rg5 {[%emt 0:00:00]} e4 {[%emt 0:00:00]} 49. fxe4 {
[%emt 0:00:00]} fxe4 {[%emt 0:00:00]} 50. Re5 {[%emt 0:00:00]} Kxg2 {[%emt 0:
00:00]} 51. Ke3 {[%emt 0:00:00]} Rf3+ {[%emt 0:00:00]} 52. Ke2 {[%emt 0:00:00]}
Rxb3 {[%emt 0:00:00]} 53. Rxe4 {[%emt 0:00:00]} Rb2+ {[%emt 0:00:00]} 54. Ke1 {
[%emt 0:00:51]} Kxh3 {[%emt 0:00:00]} 55. Kf1 {[%emt 0:00:00]} Kg3 {[%emt 0:00:
00]} 56. Re3+ {[%emt 0:00:30]} Kh2 {[%emt 0:00:00]} 57. Rf3 {[%emt 0:00:00]}
Rb1+ {[%emt 0:00:00]} 58. Kf2 {[%emt 0:00:00]} Rb7 {[%emt 0:00:00]} 59. Rf8 {
[%emt 0:00:00]} Rg7 {[%emt 0:00:00]} 60. Rf6 {[%emt 0:00:00]} Rg2+ {[%emt 0:00:
00]} 61. Kf1 {[%emt 0:00:00]} h3 {[%emt 0:00:00]} 62. Rf8 {[%emt 0:00:00]} Rg1+
{[%emt 0:00:00]} 63. Kf2 {[%emt 0:00:00]} Rg2+ {[%emt 0:00:00]} 64. Kf1 {
[%emt 0:00:00]} Rg1+ {[%emt 0:00:00]} 65. Kf2 {[%emt 0:00:00]} Rg2+ {[%emt 0:
00:00]} 1/2-1/2

[Event "Gibraltar Masters 18th"]
[Site "Gibraltar"]
[Date "2020.01.28"]
[Round "8.14"]
[White "Donchenko, Alexander"]
[Black "Sanal, Vahap"]
[Result "1/2-1/2"]
[ECO "E01"]
[WhiteElo "2647"]
[BlackElo "2569"]
[PlyCount "94"]
[EventDate "2020.01.21"]
[EventType "swiss"]
[EventRounds "10"]
[EventCountry "GGB"]
[SourceTitle "BritBase"]
[Source "John Saunders"]
[SourceDate "2021.06.05"]
[SourceVersion "1"]
[SourceVersionDate "2021.06.05"]
[SourceQuality "1"]
[TimeControl "40/100:0"]
[WhiteClock "0:36:08"]
[BlackClock "0:48:30"]

1. d4 {[%emt 0:00:00]} Nf6 {[%emt 0:00:00]} 2. c4 {[%emt 0:00:00]} e6 {[%emt 0:
00:00]} 3. g3 {[%emt 0:00:00]} c5 {[%emt 0:00:00]} 4. Nf3 {[%emt 0:00:00]} cxd4
{[%emt 0:00:00]} 5. Nxd4 {[%emt 0:00:00]} d5 {[%emt 0:00:00]} 6. Bg2 {[%emt 0:
00:00]} e5 {[%emt 0:00:00]} 7. Nf3 {[%emt 0:00:00]} d4 {[%emt 0:00:00]} 8. O-O
{[%emt 0:00:00]} Nc6 {[%emt 0:00:00]} 9. e3 {[%emt 0:00:00]} Be7 {[%emt 0:00:
00]} 10. exd4 {[%emt 0:00:00]} exd4 {[%emt 0:00:00]} 11. Bf4 {[%emt 0:00:00]}
Be6 {[%emt 0:00:00]} 12. Ne5 {[%emt 0:00:00]} Rc8 {[%emt 0:00:00]} 13. Re1 {
[%emt 0:00:00]} O-O {[%emt 0:00:00]} 14. Nd2 {[%emt 0:00:00]} d3 {[%emt 0:00:
00]} 15. Nxc6 {[%emt 0:00:00]} bxc6 {[%emt 0:00:00]} 16. Nf3 {[%emt 0:00:00]}
Bc5 {[%emt 0:00:00]} 17. Be3 {[%emt 0:00:00]} Bxe3 {[%emt 0:00:00]} 18. Rxe3 {
[%emt 0:00:00]} Bxc4 {[%emt 0:00:00]} 19. Ne5 {[%emt 0:00:00]} Bd5 {[%emt 0:00:
00]} 20. Qxd3 {[%emt 0:00:00]} Qb6 {[%emt 0:00:00]} 21. Re2 {[%emt 0:00:00]}
Rfe8 {[%emt 0:00:00]} 22. Qc3 {[%emt 0:00:00]} Qa6 {[%emt 0:00:00]} 23. Ree1 {
[%emt 0:00:00]} h6 {[%emt 0:00:00]} 24. b3 {[%emt 0:00:00]} Re7 {[%emt 0:00:00]
} 25. Nd3 {[%emt 0:00:00]} Rxe1+ {[%emt 0:00:00]} 26. Nxe1 {[%emt 0:00:00]} Qe2
{[%emt 0:00:00]} 27. Bxd5 {[%emt 0:00:00]} Nxd5 {[%emt 0:00:00]} 28. Qc2 {
[%emt 0:00:00]} Qxc2 {[%emt 0:00:00]} 29. Nxc2 {[%emt 0:00:00]} Nc3 {[%emt 0:
00:00]} 30. Kf1 {[%emt 0:00:00]} c5 {[%emt 0:00:00]} 31. Ne3 {[%emt 0:00:00]}
Rd8 {[%emt 0:00:00]} 32. Ke1 {[%emt 0:00:00]} Rd3 {[%emt 0:00:00]} 33. Nd1 {
[%emt 0:00:00]} Kf8 {[%emt 0:00:00]} 34. Nxc3 {[%emt 0:00:25]} Rxc3 {[%emt 0:
00:00]} 35. Kd2 {[%emt 0:00:33]} Rf3 {[%emt 0:00:00]} 36. Ke2 {[%emt 0:00:00]}
Rc3 {[%emt 0:00:00]} 37. Kd2 {[%emt 0:00:02]} Rf3 {[%emt 0:00:00]} 38. Rf1 {
[%emt 0:00:00]} a5 {[%emt 0:00:00]} 39. Ke2 {[%emt 0:00:00]} Rc3 {[%emt 0:00:
00]} 40. Kd2 {[%emt 0:00:00]} Rf3 {[%emt 0:00:00]} 41. Ke2 {[%emt 0:01:39]} Rc3
{[%emt 0:00:00]} 42. Rd1 {[%emt 0:00:00]} c4 {[%emt 0:00:58]} 43. bxc4 {
[%emt 0:00:00]} Rxc4 {[%emt 0:00:00]} 44. Rd3 {[%emt 0:00:00]} Rc2+ {[%emt 0:
00:00]} 45. Rd2 {[%emt 0:00:00]} Rc3 {[%emt 0:00:00]} 46. Rd3 {[%emt 0:00:00]}
Rc2+ {[%emt 0:00:00]} 47. Rd2 {[%emt 0:00:00]} Rc3 {[%emt 0:00:00]} 1/2-1/2